[Event "*** Titled Tuesday Blitz"]
[Site "Chess.com"]
[Date "2019.06.04"]
[Round "1"]
[White "Filip_Covic"]
[Black "Fins0905"]
[Result "1/2-1/2"]
[WhiteElo "2365"]
[BlackElo "2689"]
[TimeControl "180+2"]
[EndTime "13:10:35 PDT"]
[Termination "Game drawn - insufficient material"]

1. d4 {[%clk 0:03:01.9]} 1... d5 {[%clk 0:02:59.9]} 2. Nf3 {[%clk 0:03:03.3]}
2... f6 {[%clk 0:03:00.8]} 3. c4 {[%clk 0:03:02.6]} 3... c6 {[%clk 0:03:01.2]}
4. e3 {[%clk 0:02:54.9]} 4... Bf5 {[%clk 0:02:53.6]} 5. Nc3 {[%clk 0:02:55]}
5... e6 {[%clk 0:02:53.7]} 6. Nh4 {[%clk 0:02:55.5]} 6... Bg6 {[%clk 0:02:52.8]}
7. Nxg6 {[%clk 0:02:56.2]} 7... hxg6 {[%clk 0:02:53.4]} 8. Qg4 {[%clk
0:02:56.8]} 8... Kf7 {[%clk 0:02:51.9]} 9. Bd3 {[%clk 0:02:45.8]} 9... f5 {[%clk
0:02:47.9]} 10. Qf3 {[%clk 0:02:46.6]} 10... Nf6 {[%clk 0:02:47.3]} 11. h3
{[%clk 0:02:40.7]} 11... Bd6 {[%clk 0:02:44.1]} 12. Rg1 {[%clk 0:02:37.1]} 12...
Nbd7 {[%clk 0:02:30.3]} 13. g4 {[%clk 0:02:36.4]} 13... Qg8 {[%clk 0:02:19.5]}
14. Qg2 {[%clk 0:02:31.5]} 14... Qh7 {[%clk 0:02:15.7]} 15. Ne2 {[%clk
0:02:16.1]} 15... Bb4+ {[%clk 0:01:28.4]} 16. Bd2 {[%clk 0:02:14.9]} 16... Bxd2+
{[%clk 0:01:29]} 17. Kxd2 {[%clk 0:02:15.9]} 17... Ne4+ {[%clk 0:01:28.3]} 18.
Kc2 {[%clk 0:02:11.7]} 18... Qxh3 {[%clk 0:01:06.9]} 19. gxf5 {[%clk 0:02:10.9]}
19... Qxg2 {[%clk 0:01:07.8]} 20. fxe6+ {[%clk 0:02:10.8]} 20... Kxe6 {[%clk
0:01:09.7]} 21. Rxg2 {[%clk 0:02:12.1]} 21... Rh6 {[%clk 0:01:05.9]} 22. Nf4+
{[%clk 0:02:10.9]} 22... Kf7 {[%clk 0:01:00]} 23. cxd5 {[%clk 0:02:07]} 23...
cxd5 {[%clk 0:01:01.9]} 24. Nxd5 {[%clk 0:02:03.9]} 24... Rc8+ {[%clk
0:01:02.3]} 25. Nc3 {[%clk 0:01:58.7]} 25... Ndf6 {[%clk 0:00:59.6]} 26. Bxe4
{[%clk 0:01:51.3]} 26... Nxe4 {[%clk 0:01:00.3]} 27. Kd3 {[%clk 0:01:52.8]}
27... Nd6 {[%clk 0:00:51.3]} 28. e4 {[%clk 0:01:38.9]} 28... Rh3+ {[%clk
0:00:47.7]} 29. Rg3 {[%clk 0:01:38.7]} 29... Rh2 {[%clk 0:00:49.1]} 30. Rag1
{[%clk 0:01:25.5]} 30... Rxf2 {[%clk 0:00:37.3]} 31. Rxg6 {[%clk 0:01:24.6]}
31... Ne8 {[%clk 0:00:29.8]} 32. e5 {[%clk 0:01:10.5]} 32... Rxb2 {[%clk
0:00:29.4]} 33. d5 {[%clk 0:01:08.5]} 33... Rf2 {[%clk 0:00:29]} 34. R6g3 {[%clk
0:01:07.1]} 34... Rf5 {[%clk 0:00:28.1]} 35. Re3 {[%clk 0:01:04]} 35... g6
{[%clk 0:00:27.6]} 36. d6 {[%clk 0:01:01.7]} 36... Ng7 {[%clk 0:00:25.9]} 37.
Rh1 {[%clk 0:00:42.6]} 37... Kg8 {[%clk 0:00:23.6]} 38. Rh6 {[%clk 0:00:26.1]}
38... Kf7 {[%clk 0:00:23.4]} 39. Nd5 {[%clk 0:00:19.3]} 39... Rc5 {[%clk
0:00:18.6]} 40. Kd4 {[%clk 0:00:18.9]} 40... Ne6+ {[%clk 0:00:19.5]} 41. Ke4
{[%clk 0:00:15.4]} 41... Rc4+ {[%clk 0:00:20.6]} 42. Kd3 {[%clk 0:00:16.1]}
42... Rd4+ {[%clk 0:00:22.2]} 43. Kc3 {[%clk 0:00:17.6]} 43... Rxd5 {[%clk
0:00:23.7]} 44. Rh7+ {[%clk 0:00:19]} 44... Kg8 {[%clk 0:00:19.9]} 45. Re7
{[%clk 0:00:19.4]} 45... Rfxe5 {[%clk 0:00:10.7]} 46. Rxe5 {[%clk 0:00:11.8]}
46... Rxe5 {[%clk 0:00:12.6]} 47. d7 {[%clk 0:00:12.5]} 47... Rc5+ {[%clk
0:00:08.1]} 48. Kb4 {[%clk 0:00:12.4]} 48... a5+ {[%clk 0:00:09.3]} 49. Ka4
{[%clk 0:00:12.4]} 49... Rd5 {[%clk 0:00:03.9]} 50. Rxe6 {[%clk 0:00:13.2]}
50... Rxd7 {[%clk 0:00:05.1]} 51. Rxg6+ {[%clk 0:00:14.6]} 51... Kf7 {[%clk
0:00:06.6]} 52. Rb6 {[%clk 0:00:15.3]} 52... Ke7 {[%clk 0:00:07.5]} 53. Kxa5
{[%clk 0:00:16.5]} 53... Kd8 {[%clk 0:00:08.9]} 54. Rb5 {[%clk 0:00:17.1]} 54...
Kc7 {[%clk 0:00:10.1]} 55. Rc5+ {[%clk 0:00:17.6]} 55... Kb8 {[%clk 0:00:10.8]}
56. Rc2 {[%clk 0:00:18.3]} 56... Rd4 {[%clk 0:00:10.9]} 57. a4 {[%clk
0:00:17.8]} 57... Ka7 {[%clk 0:00:11.7]} 58. Kb5 {[%clk 0:00:17.8]} 58... Rd5+
{[%clk 0:00:11.2]} 59. Kb4 {[%clk 0:00:18.6]} 59... Ka6 {[%clk 0:00:10.9]} 60.
Rc4 {[%clk 0:00:16.5]} 60... Rg5 {[%clk 0:00:11]} 61. Rf4 {[%clk 0:00:16.6]}
61... b6 {[%clk 0:00:12.1]} 62. Rc4 {[%clk 0:00:14.6]} 62... Rg1 {[%clk
0:00:11.8]} 63. Rc3 {[%clk 0:00:15.4]} 63... Rb1+ {[%clk 0:00:12.5]} 64. Rb3
{[%clk 0:00:16.6]} 64... Rxb3+ {[%clk 0:00:12.4]} 65. Kxb3 {[%clk 0:00:17.2]}
65... b5 {[%clk 0:00:14.3]} 66. axb5+ {[%clk 0:00:17.7]} 66... Kxb5 {[%clk
0:00:16.2]} 1/2-1/2

[Event "*** Titled Tuesday Blitz"]
[Site "Chess.com"]
[Date "2019.06.04"]
[Round "1"]
[White "Chesska7"]
[Black "Muracle"]
[Result "0-1"]
[WhiteElo "2080"]
[BlackElo "2527"]
[TimeControl "180+2"]
[EndTime "13:10:42 PDT"]
[Termination "Muracle won by resignation"]

1. Nf3 {[%clk 0:03:01.9]} 1... Nf6 {[%clk 0:02:53.1]} 2. g3 {[%clk 0:03:01.6]}
2... g6 {[%clk 0:02:54.1]} 3. Bg2 {[%clk 0:03:02.7]} 3... Bg7 {[%clk 0:02:56]}
4. d4 {[%clk 0:03:03.9]} 4... O-O {[%clk 0:02:57.9]} 5. O-O {[%clk 0:03:05.1]}
5... c6 {[%clk 0:02:56]} 6. c4 {[%clk 0:03:05.4]} 6... d5 {[%clk 0:02:57]} 7.
Nbd2 {[%clk 0:03:06.3]} 7... Ne4 {[%clk 0:02:56.4]} 8. e3 {[%clk 0:03:07.1]}
8... Nd7 {[%clk 0:02:56.1]} 9. Nxe4 {[%clk 0:03:00.2]} 9... dxe4 {[%clk
0:02:41.8]} 10. Ng5 {[%clk 0:03:01]} 10... c5 {[%clk 0:02:38.8]} 11. dxc5 {[%clk
0:02:09.5]} 11... Nxc5 {[%clk 0:02:36.8]} 12. Nxe4 {[%clk 0:02:09.9]} 12... Nd3
{[%clk 0:02:37.1]} 13. Qe2 {[%clk 0:02:09.7]} 13... Ne5 {[%clk 0:02:31.4]} 14.
Bd2 {[%clk 0:01:41.5]} 14... Bg4 {[%clk 0:02:29.1]} 15. f3 {[%clk 0:01:39.9]}
15... Be6 {[%clk 0:02:28.9]} 16. b3 {[%clk 0:01:35.5]} 16... Qd3 {[%clk
0:02:23.9]} 17. Qxd3 {[%clk 0:01:25.8]} 17... Nxd3 {[%clk 0:02:23.7]} 18. Bc3
{[%clk 0:01:27.2]} 18... Rfd8 {[%clk 0:02:20.3]} 19. Bxg7 {[%clk 0:01:24.4]}
19... Kxg7 {[%clk 0:02:22.2]} 20. Rfd1 {[%clk 0:01:25.5]} 20... Bf5 {[%clk
0:02:22.1]} 21. Nf2 {[%clk 0:01:17.2]} 21... Nb2 {[%clk 0:02:11.6]} 22. Rxd8
{[%clk 0:01:16.6]} 22... Rxd8 {[%clk 0:02:12.9]} 23. g4 {[%clk 0:01:15.1]} 23...
Bc2 {[%clk 0:02:11]} 24. Kf1 {[%clk 0:00:52.6]} 24... h5 {[%clk 0:02:09]} 25.
Rc1 {[%clk 0:00:43]} 25... Rd2 {[%clk 0:02:05.7]} 26. Ra1 {[%clk 0:00:18]} 26...
Bd3+ {[%clk 0:02:02]} 27. Nxd3 {[%clk 0:00:15.8]} 27... Nxd3 {[%clk 0:02:02.9]}
28. gxh5 {[%clk 0:00:16.9]} 28... gxh5 {[%clk 0:02:03.6]} 29. f4 {[%clk
0:00:18.2]} 29... b6 {[%clk 0:02:04.2]} 30. Be4 {[%clk 0:00:17.4]} 30... Nc5
{[%clk 0:01:56.4]} 31. Bg2 {[%clk 0:00:17.5]} 31... f5 {[%clk 0:01:56.8]} 32. h4
{[%clk 0:00:17.8]} 32... Nd3 {[%clk 0:01:56.7]} 33. Kg1 {[%clk 0:00:18.8]} 33...
Kf6 {[%clk 0:01:56.3]} 34. Bf3 {[%clk 0:00:20]} 34... Nb4 {[%clk 0:01:55.7]} 35.
Bxh5 {[%clk 0:00:20.5]} 35... Nc2 {[%clk 0:01:55.7]} 36. Rd1 {[%clk 0:00:21.6]}
36... Rxd1+ {[%clk 0:01:51.5]} 37. Bxd1 {[%clk 0:00:23.4]} 37... Nxe3 {[%clk
0:01:53.4]} 38. Bf3 {[%clk 0:00:24.4]} 38... e5 {[%clk 0:01:53.8]} 39. fxe5+
{[%clk 0:00:25.2]} 39... Kxe5 {[%clk 0:01:54.9]} 40. Kf2 {[%clk 0:00:26.4]}
40... f4 {[%clk 0:01:54.9]} 41. h5 {[%clk 0:00:27.2]} 41... Nf5 {[%clk
0:01:56.1]} 42. Ke2 {[%clk 0:00:27.3]} 42... Kd4 {[%clk 0:01:52.8]} 43. Bg4
{[%clk 0:00:27.7]} 43... Nh6 {[%clk 0:01:51.7]} 44. Kf3 {[%clk 0:00:28.5]} 44...
Ke5 {[%clk 0:01:51.9]} 45. a3 {[%clk 0:00:27.7]} 45... Nf7 {[%clk 0:01:50.3]}
46. Kf2 {[%clk 0:00:20.4]} 46... Ke4 {[%clk 0:01:42.9]} 47. Be6 {[%clk
0:00:18.6]} 47... Nh6 {[%clk 0:01:32.1]} 48. Bd5+ {[%clk 0:00:18.4]} 48... Kf5
{[%clk 0:01:30.4]} 49. Kf3 {[%clk 0:00:19]} 49... Kg5 {[%clk 0:01:31.8]} 50. b4
{[%clk 0:00:19.4]} 50... Nf5 {[%clk 0:01:32.6]} 51. c5 {[%clk 0:00:18.3]} 51...
bxc5 {[%clk 0:01:32.4]} 52. bxc5 {[%clk 0:00:20.2]} 52... Nh4+ {[%clk
0:01:28.9]} 53. Ke4 {[%clk 0:00:20.8]} 53... f3 {[%clk 0:01:28.3]} 54. Ke3
{[%clk 0:00:21.7]} 54... Kg4 {[%clk 0:01:26.9]} 55. h6 {[%clk 0:00:21.4]} 55...
Nf5+ {[%clk 0:01:23]} 56. Kf2 {[%clk 0:00:22.2]} 56... Nxh6 {[%clk 0:01:24.2]}
57. Bxf3+ {[%clk 0:00:23.4]} 57... Kf5 {[%clk 0:01:25.5]} 58. Ke3 {[%clk
0:00:24.8]} 58... Ke5 {[%clk 0:01:26.2]} 59. Kd3 {[%clk 0:00:24]} 59... Nf5
{[%clk 0:01:23.7]} 60. Kc3 {[%clk 0:00:24.9]} 60... Nd4 {[%clk 0:01:21.4]} 61.
Bb7 {[%clk 0:00:26]} 61... Ne6 {[%clk 0:01:20.9]} 62. Kc4 {[%clk 0:00:25.5]}
62... Nc7 {[%clk 0:01:20.3]} 63. a4 {[%clk 0:00:25.5]} 63... Ke6 {[%clk
0:01:20]} 64. Kd4 {[%clk 0:00:23.8]} 64... Kd7 {[%clk 0:01:19.5]} 65. a5 {[%clk
0:00:24.7]} 65... Ne6+ {[%clk 0:01:19.9]} 66. Kd5 {[%clk 0:00:24.6]} 66... Nd8
{[%clk 0:01:20]} 67. Ba6 {[%clk 0:00:20.9]} 67... Kc7 {[%clk 0:01:20.7]} 68. Bf1
{[%clk 0:00:20.5]} 68... Nc6 {[%clk 0:01:20.5]} 69. a6 {[%clk 0:00:21]} 69...
Nb4+ {[%clk 0:01:21.5]} 70. Kc4 {[%clk 0:00:22.2]} 70... Nc2 {[%clk 0:01:22.5]}
71. Bd3 {[%clk 0:00:21.7]} 71... Ne3+ {[%clk 0:01:22.1]} 72. Kb5 {[%clk
0:00:22.8]} 72... Nd5 {[%clk 0:01:21.1]} 73. Be4 {[%clk 0:00:23.7]} 73... Nc3+
{[%clk 0:01:21.8]} 74. Kc4 {[%clk 0:00:24.9]} 74... Nxe4 {[%clk 0:01:23.7]} 75.
Kb5 {[%clk 0:00:25.3]} 75... Kd7 {[%clk 0:01:21.9]} 76. Kc4 {[%clk 0:00:21.6]}
76... Kc6 {[%clk 0:01:22.8]} 77. Kd4 {[%clk 0:00:22.6]} 77... Nxc5 {[%clk
0:01:24.1]} 78. Kc4 {[%clk 0:00:24.5]} 78... Nxa6 {[%clk 0:01:26]} 0-1

[Event "*** Titled Tuesday Blitz"]
[Site "Chess.com"]
[Date "2019.06.04"]
[Round "1"]
[White "ZaphenathPaneah"]
[Black "ENEASZ"]
[Result "0-1"]
[WhiteElo "1788"]
[BlackElo "2507"]
[TimeControl "180+2"]
[EndTime "13:10:47 PDT"]
[Termination "ENEASZ won by resignation"]

1. e4 {[%clk 0:03:01.9]} 1... g6 {[%clk 0:03:01.3]} 2. d4 {[%clk 0:03:03]} 2...
Bg7 {[%clk 0:03:03.2]} 3. c4 {[%clk 0:03:03.7]} 3... c5 {[%clk 0:03:03.9]} 4. d5
{[%clk 0:03:04.7]} 4... d6 {[%clk 0:03:00.5]} 5. Nc3 {[%clk 0:03:04.9]} 5...
Bxc3+ {[%clk 0:02:53.6]} 6. bxc3 {[%clk 0:03:05.8]} 6... f5 {[%clk 0:02:55.5]}
7. exf5 {[%clk 0:03:04.5]} 7... Bxf5 {[%clk 0:02:57.4]} 8. Nf3 {[%clk
0:03:05.4]} 8... Nf6 {[%clk 0:02:58]} 9. Bd3 {[%clk 0:03:05.5]} 9... e5 {[%clk
0:02:53.3]} 10. dxe6 {[%clk 0:02:57.8]} 10... Bxe6 {[%clk 0:02:54.2]} 11. O-O
{[%clk 0:02:58.1]} 11... O-O {[%clk 0:02:55]} 12. Bh6 {[%clk 0:02:56]} 12... Re8
{[%clk 0:02:56]} 13. h3 {[%clk 0:02:56.5]} 13... Nbd7 {[%clk 0:02:54.9]} 14. Qd2
{[%clk 0:02:56.3]} 14... Ne5 {[%clk 0:02:51.1]} 15. Nxe5 {[%clk 0:02:56.8]}
15... dxe5 {[%clk 0:02:53]} 16. Rfe1 {[%clk 0:02:55.3]} 16... Qd6 {[%clk
0:02:33.3]} 17. Qc2 {[%clk 0:02:55.3]} 17... Bf7 {[%clk 0:02:29.7]} 18. Rad1
{[%clk 0:02:55.7]} 18... Qa6 {[%clk 0:02:16.3]} 19. Qb3 {[%clk 0:02:44.1]} 19...
e4 {[%clk 0:02:08.8]} 20. Bf1 {[%clk 0:02:44.9]} 20... Re6 {[%clk 0:01:44.6]}
21. Be3 {[%clk 0:02:37.2]} 21... b6 {[%clk 0:01:42.9]} 22. Rd2 {[%clk
0:02:30.7]} 22... Rae8 {[%clk 0:01:42.3]} 23. Red1 {[%clk 0:02:30.7]} 23... Kg7
{[%clk 0:01:38.4]} 24. Qb5 {[%clk 0:02:25.6]} 24... Qc8 {[%clk 0:01:25.3]} 25.
Be2 {[%clk 0:02:21.2]} 25... h6 {[%clk 0:01:22.7]} 26. Qb1 {[%clk 0:02:09.3]}
26... g5 {[%clk 0:01:20.7]} 27. Qc1 {[%clk 0:02:09.8]} 27... Re5 {[%clk
0:01:18]} 28. Rd6 {[%clk 0:02:09.6]} 28... Qc7 {[%clk 0:01:14.7]} 29. h4 {[%clk
0:02:00.6]} 29... Nh7 {[%clk 0:01:08.1]} 30. Bg4 {[%clk 0:01:31.5]} 30... R8e7
{[%clk 0:01:06.2]} 31. Rd7 {[%clk 0:01:23.9]} 31... Qb8 {[%clk 0:01:06.2]} 32.
R1d6 {[%clk 0:01:18.6]} 32... Be8 {[%clk 0:01:00.1]} 33. Rxe7+ {[%clk
0:01:17.1]} 33... Rxe7 {[%clk 0:01:02]} 34. hxg5 {[%clk 0:01:18]} 34... Qxd6
{[%clk 0:01:02.2]} 35. gxh6+ {[%clk 0:01:18.6]} 35... Kg8 {[%clk 0:00:59.6]} 36.
Bf4 {[%clk 0:01:17.7]} 36... Qg6 {[%clk 0:00:58.4]} 37. Qd1 {[%clk 0:01:10.6]}
37... Nf6 {[%clk 0:00:54.6]} 38. Qd8 {[%clk 0:01:03.8]} 38... Kf7 {[%clk
0:00:14.5]} 39. Bd6 {[%clk 0:00:59.6]} 39... Ng8 {[%clk 0:00:14.9]} 40. Bxe7
{[%clk 0:00:47.2]} 40... Nxe7 {[%clk 0:00:16.8]} 41. Qd1 {[%clk 0:00:33.7]}
41... Qxh6 {[%clk 0:00:17.1]} 42. Bh5+ {[%clk 0:00:30.2]} 42... Kf8 {[%clk
0:00:18.3]} 43. Bxe8 {[%clk 0:00:29.6]} 43... Kxe8 {[%clk 0:00:20.2]} 44. Qg4
{[%clk 0:00:27.9]} 44... Qg6 {[%clk 0:00:20.7]} 45. Qf4 {[%clk 0:00:25.9]} 45...
a5 {[%clk 0:00:19.2]} 46. Qb8+ {[%clk 0:00:25.8]} 46... Kf7 {[%clk 0:00:20.1]}
47. Qf4+ {[%clk 0:00:26.6]} 47... Kg7 {[%clk 0:00:21]} 48. Qe5+ {[%clk
0:00:27.1]} 48... Kf7 {[%clk 0:00:21.7]} 49. Qf4+ {[%clk 0:00:28.3]} 49... Kg8
{[%clk 0:00:23.2]} 50. Qc7 {[%clk 0:00:27.4]} 50... Qe6 {[%clk 0:00:22.6]} 51.
Qg3+ {[%clk 0:00:25.3]} 51... Kf7 {[%clk 0:00:23.4]} 52. Qf4+ {[%clk 0:00:26.5]}
52... Ke8 {[%clk 0:00:24.4]} 53. Qb8+ {[%clk 0:00:27.2]} 53... Kd7 {[%clk
0:00:25.3]} 54. Qb7+ {[%clk 0:00:28.1]} 54... Kd8 {[%clk 0:00:26]} 55. Qb8+
{[%clk 0:00:29.2]} 55... Nc8 {[%clk 0:00:27.3]} 56. Qf4 {[%clk 0:00:29.2]} 56...
Qxc4 {[%clk 0:00:28.1]} 57. g4 {[%clk 0:00:28.8]} 57... Qxc3 {[%clk 0:00:28.5]}
58. Qxe4 {[%clk 0:00:29.9]} 58... Qd4 {[%clk 0:00:28]} 59. Qf5 {[%clk
0:00:27.4]} 59... Ne7 {[%clk 0:00:27.4]} 60. Qe6 {[%clk 0:00:26.1]} 60... c4
{[%clk 0:00:28]} 61. g5 {[%clk 0:00:24]} 61... c3 {[%clk 0:00:29]} 62. Qe2
{[%clk 0:00:15]} 62... Qd2 {[%clk 0:00:26.2]} 63. Kf1 {[%clk 0:00:15.2]} 63...
Qxg5 {[%clk 0:00:25.9]} 64. Qd3+ {[%clk 0:00:15.5]} 64... Nd5 {[%clk 0:00:25.9]}
65. Ke2 {[%clk 0:00:12.2]} 65... Qe5+ {[%clk 0:00:21.9]} 66. Kd1 {[%clk
0:00:12.9]} 66... Kc7 {[%clk 0:00:21.9]} 67. Qc4+ {[%clk 0:00:11.9]} 67... Kb7
{[%clk 0:00:23]} 68. a4 {[%clk 0:00:11]} 68... Nb4 {[%clk 0:00:17.8]} 69. Qf7+
{[%clk 0:00:10.1]} 69... Qc7 {[%clk 0:00:16.9]} 70. Qxc7+ {[%clk 0:00:10.1]}
70... Kxc7 {[%clk 0:00:18.8]} 71. Kc1 {[%clk 0:00:10]} 71... Kd6 {[%clk
0:00:19.9]} 72. Kd1 {[%clk 0:00:11.5]} 72... Ke5 {[%clk 0:00:21.5]} 73. Ke2
{[%clk 0:00:13.4]} 73... Kf4 {[%clk 0:00:23.1]} 0-1

[Event "*** Titled Tuesday Blitz"]
[Site "Chess.com"]
[Date "2019.06.04"]
[Round "1"]
[White "ChessWeebs"]
[Black "CookiesAndIceCream"]
[Result "1-0"]
[WhiteElo "2763"]
[BlackElo "2402"]
[TimeControl "180+2"]
[EndTime "13:10:53 PDT"]
[Termination "ChessWeebs won by resignation"]

1. Nf3 {[%clk 0:03:00.2]} 1... d5 {[%clk 0:03:00.8]} 2. g3 {[%clk 0:03:01.2]}
2... c6 {[%clk 0:03:01.5]} 3. Bg2 {[%clk 0:03:02]} 3... Nf6 {[%clk 0:03:02.7]}
4. O-O {[%clk 0:03:02.4]} 4... Bg4 {[%clk 0:03:03.9]} 5. d3 {[%clk 0:03:03.1]}
5... Nbd7 {[%clk 0:03:05]} 6. h3 {[%clk 0:03:04.5]} 6... Bh5 {[%clk 0:03:05]} 7.
Qe1 {[%clk 0:03:05.6]} 7... e5 {[%clk 0:03:05.1]} 8. e4 {[%clk 0:03:06.8]} 8...
dxe4 {[%clk 0:03:06.5]} 9. dxe4 {[%clk 0:03:08.1]} 9... Bc5 {[%clk 0:03:07.8]}
10. b4 {[%clk 0:03:09.1]} 10... Bb6 {[%clk 0:03:03.6]} 11. Bb2 {[%clk
0:03:10.2]} 11... O-O {[%clk 0:02:35.1]} 12. Nbd2 {[%clk 0:03:09.5]} 12... Re8
{[%clk 0:02:34.7]} 13. Nc4 {[%clk 0:03:03.2]} 13... Bc7 {[%clk 0:02:35.6]} 14.
a4 {[%clk 0:02:31.7]} 14... Qe7 {[%clk 0:02:25]} 15. Nh4 {[%clk 0:02:21.2]}
15... Rad8 {[%clk 0:02:04.9]} 16. Nf5 {[%clk 0:02:05.3]} 16... Qe6 {[%clk
0:02:04]} 17. Nce3 {[%clk 0:02:06.9]} 17... Nb6 {[%clk 0:01:55.3]} 18. Qc3
{[%clk 0:01:58.5]} 18... Nc8 {[%clk 0:01:22.8]} 19. Rfe1 {[%clk 0:01:52.6]}
19... Nd6 {[%clk 0:01:22.6]} 20. Nxd6 {[%clk 0:01:50.2]} 20... Bxd6 {[%clk
0:01:22.1]} 21. Nf5 {[%clk 0:01:38.5]} 21... Bb8 {[%clk 0:01:15.1]} 22. Qe3
{[%clk 0:01:06.7]} 22... Rd7 {[%clk 0:01:10.9]} 23. g4 {[%clk 0:00:46.7]} 23...
Bg6 {[%clk 0:01:11.1]} 24. Bf3 {[%clk 0:00:47.5]} 24... Bxf5 {[%clk 0:00:54.9]}
25. gxf5 {[%clk 0:00:47]} 25... Qc4 {[%clk 0:00:55.7]} 26. Qc3 {[%clk 0:00:47]}
26... Qxc3 {[%clk 0:00:44.3]} 27. Bxc3 {[%clk 0:00:47.3]} 27... Red8 {[%clk
0:00:45.4]} 28. h4 {[%clk 0:00:40.1]} 28... Ne8 {[%clk 0:00:38.4]} 29. Be2
{[%clk 0:00:37.6]} 29... Nd6 {[%clk 0:00:34.6]} 30. f3 {[%clk 0:00:38.3]} 30...
f6 {[%clk 0:00:34.3]} 31. Red1 {[%clk 0:00:33.2]} 31... Kf8 {[%clk 0:00:31.6]}
32. Kh2 {[%clk 0:00:32.3]} 32... Bc7 {[%clk 0:00:31.5]} 33. b5 {[%clk
0:00:26.9]} 33... cxb5 {[%clk 0:00:30.1]} 34. axb5 {[%clk 0:00:27.8]} 34... Bb6
{[%clk 0:00:30.7]} 35. Bb4 {[%clk 0:00:29.4]} 35... Ke8 {[%clk 0:00:30.4]} 36.
Rd5 {[%clk 0:00:30.4]} 36... Nf7 {[%clk 0:00:25.6]} 37. Bc4 {[%clk 0:00:31.4]}
37... Rxd5 {[%clk 0:00:23.6]} 38. Bxd5 {[%clk 0:00:32.6]} 38... Rd7 {[%clk
0:00:24.7]} 39. c4 {[%clk 0:00:33.6]} 39... Rc7 {[%clk 0:00:24.7]} 40. c5 {[%clk
0:00:27.2]} 40... Bxc5 {[%clk 0:00:23.5]} 41. Bxc5 {[%clk 0:00:23.1]} 41... Rxc5
{[%clk 0:00:24.5]} 42. Rxa7 {[%clk 0:00:25]} 42... Rxb5 {[%clk 0:00:22.3]} 43.
Bxb7 {[%clk 0:00:26.6]} 43... Rb2+ {[%clk 0:00:18.2]} 44. Kg3 {[%clk 0:00:27.6]}
44... Nd6 {[%clk 0:00:19.5]} 45. Bc6+ {[%clk 0:00:28.6]} 45... Kf8 {[%clk
0:00:20.1]} 46. Bd5 {[%clk 0:00:29.8]} 46... Rb6 {[%clk 0:00:19.2]} 47. Ra8+
{[%clk 0:00:30.7]} 47... Ke7 {[%clk 0:00:20.1]} 48. Rh8 {[%clk 0:00:31.7]} 48...
h6 {[%clk 0:00:20.5]} 49. Kg4 {[%clk 0:00:33.2]} 49... Rb1 {[%clk 0:00:20.8]}
50. Kh5 {[%clk 0:00:33.5]} 50... Rg1 {[%clk 0:00:21.6]} 51. Ra8 {[%clk
0:00:32.1]} 51... Ne8 {[%clk 0:00:21.3]} 52. Ra7+ {[%clk 0:00:33]} 52... Kd6
{[%clk 0:00:21.8]} 53. Be6 {[%clk 0:00:33.9]} 53... Rg3 {[%clk 0:00:22]} 54.
Rd7+ {[%clk 0:00:34.1]} 54... Kc6 {[%clk 0:00:23.4]} 55. Rd3 {[%clk 0:00:35.2]}
55... Nd6 {[%clk 0:00:23.5]} 56. Rc3+ {[%clk 0:00:36.6]} 56... Kb6 {[%clk
0:00:23.8]} 57. Bd5 {[%clk 0:00:37.9]} 57... Nb5 {[%clk 0:00:22.4]} 58. Rc6+
{[%clk 0:00:39.2]} 58... Ka5 {[%clk 0:00:23.4]} 59. f4 {[%clk 0:00:40.3]} 59...
exf4 {[%clk 0:00:22.7]} 60. e5 {[%clk 0:00:39.4]} 60... fxe5 {[%clk 0:00:22.8]}
61. Re6 {[%clk 0:00:41]} 61... Re3 {[%clk 0:00:21.2]} 62. Kg6 {[%clk 0:00:41.8]}
62... f3 {[%clk 0:00:22.3]} 63. Kxg7 {[%clk 0:00:42.6]} 63... f2 {[%clk
0:00:23.7]} 64. Bc4 {[%clk 0:00:44]} 64... Nd4 {[%clk 0:00:24.5]} 65. Rf6 {[%clk
0:00:40.1]} 65... Kb4 {[%clk 0:00:25.5]} 66. Bf1 {[%clk 0:00:40.2]} 66... Re1
{[%clk 0:00:26.8]} 67. Ba6 {[%clk 0:00:41.2]} 67... Ka5 {[%clk 0:00:27.6]} 68.
Bc4 {[%clk 0:00:41.5]} 68... Kb4 {[%clk 0:00:28.5]} 69. Ba6 {[%clk 0:00:42.7]}
69... Ne2 {[%clk 0:00:29.8]} 70. Rb6+ {[%clk 0:00:43.1]} 70... Kc3 {[%clk
0:00:29.5]} 71. Rc6+ {[%clk 0:00:40.8]} 71... Kb4 {[%clk 0:00:27.4]} 72. f6
{[%clk 0:00:40.7]} 72... f1=Q {[%clk 0:00:27.8]} 73. f7 {[%clk 0:00:42.4]} 73...
Qg2+ {[%clk 0:00:27]} 74. Rg6 {[%clk 0:00:44]} 74... Qxg6+ {[%clk 0:00:21.2]}
75. Kxg6 {[%clk 0:00:45.3]} 75... Rf1 {[%clk 0:00:23.1]} 76. Bxe2 {[%clk
0:00:46.2]} 76... Rf2 {[%clk 0:00:24.3]} 77. Bg4 {[%clk 0:00:47]} 77... e4
{[%clk 0:00:25.1]} 78. Bf5 {[%clk 0:00:48.6]} 78... Rg2+ {[%clk 0:00:24.1]} 79.
Kf6 {[%clk 0:00:49.6]} 79... e3 {[%clk 0:00:24.5]} 80. f8=Q+ {[%clk 0:00:51.1]}
80... Kc3 {[%clk 0:00:25.7]} 81. Qc5+ {[%clk 0:00:52.2]} 81... Kd2 {[%clk
0:00:27.6]} 82. Qd4+ {[%clk 0:00:53.5]} 82... Ke2 {[%clk 0:00:28.7]} 83. Bd3+
{[%clk 0:00:54.8]} 83... Kf2 {[%clk 0:00:29.4]} 84. Qf4+ {[%clk 0:00:55.9]}
84... Kg1 {[%clk 0:00:29.9]} 85. Qxe3+ {[%clk 0:00:57.5]} 85... Kh2 {[%clk
0:00:31.7]} 86. Qf4+ {[%clk 0:00:57.6]} 86... Rg3 {[%clk 0:00:33]} 87. Qxg3+
{[%clk 0:00:58.5]} 87... Kxg3 {[%clk 0:00:34.1]} 88. h5 {[%clk 0:01:00.4]} 88...
Kg4 {[%clk 0:00:32]} 89. Kg6 {[%clk 0:01:01.8]} 89... Kf4 {[%clk 0:00:33.3]} 90.
Kxh6 {[%clk 0:01:03.4]} 90... Ke5 {[%clk 0:00:35.2]} 91. Kg7 {[%clk 0:01:04.9]}
91... Ke6 {[%clk 0:00:36.6]} 92. Bg6 {[%clk 0:01:06.4]} 92... Ke7 {[%clk
0:00:38.4]} 93. h6 {[%clk 0:01:08.3]} 1-0